fUSD/lending_fUSD_20240715
["ID","MTS","AMOUNT","RATE_DAILY","PERIOD"]
[332188963,1721020239100,-157.401523,0.00013619,2]
[332188964,1721020239109,-511.77,0.00013699,2]
[332188965,1721020239119,-1612.23,0.00013699,2]
[332188966,1721020239129,-250.0,0.00013699,2]
[332188967,1721020239139,-200.0,0.00013699,2]
[332188968,1721020239148,-205.26415453,0.00013699,2]
[332188969,1721020239165,-1549.76857005,0.00013699,2]
[332188970,1721020239176,-257.82237684,0.00013699,2]
[332188971,1721020239203,-738.14489858,0.00013699,2]
[332188972,1721020239212,-1955.17013714,0.000137,2]
[332189009,1721020240170,-1523.70000067,0.000128,2]
[332189010,1721020240227,-509.27537668,0.000128,2]
[332189011,1721020240237,-783.69693183,0.000136,2]
[332189012,1721020240283,-292.35706817,0.000136,2]
[332189013,1721020240293,-589.29629082,0.000137,2]
[332189014,1721020240304,-137.02227204,0.000137,2]
[332189015,1721020240314,-621.470428,0.00013731,2]
[332189016,1721020240323,-207.15681,0.00013731,2]
[332189017,1721020240332,-439.12822285,0.00013736,2]
[332189018,1721020240342,-155.16740127,0.00013736,2]
[332189019,1721020240351,-529.36820483,0.00013736,2]
[332189020,1721020240361,-62.32598907,0.00013736,2]
[332189021,1721020240398,-180.67032471,0.00013736,2]
[332189022,1721020240407,-87.36741056,0.00013736,2]
[332189023,1721020240515,-2658.24151861,0.00013736,2]
[332189024,1721020240525,-521.34144675,0.00013759,2]
[332189025,1721020240534,-188.46892234,0.00013759,2]
[332189026,1721020240543,-206.95152117,0.00013759,2]
[332189027,1721020240553,-150.0,0.00013773,2]
[332189028,1721020240563,-687.191,0.00013777,2]
[332189029,1721020240572,-893.94367323,0.0001379,2]
[332189030,1721020240581,-483.16409692,0.0001379,2]
[332189031,1721020240591,-483.16409688,0.0001379,2]
[332189032,1721020240601,-483.16409688,0.00013791,2]
[332189033,1721020240610,-618.9203,0.000138,2]
[332189034,1721020240619,-40000.0,0.000138,2]
[332189035,1721020240628,-7500.0,0.000138,2]
[332189036,1721020240638,-157.85211343,0.00013802,2]
[332189037,1721020240648,-483.16409688,0.00013807,2]
[332189038,1721020240660,-483.16409688,0.00013822,2]
[332189039,1721020240670,-483.16409688,0.00013838,2]
[332189040,1721020240679,-157.401523,0.00013843,2]
[332189041,1721020240689,-2378.18929727,0.00013849,2]
[332189042,1721020240699,-483.16409688,0.00013853,2]
[332189043,1721020240709,-73171.4231179,0.0001386,2]
[332189044,1721020240718,-483.16409688,0.00013869,2]
[332189045,1721020240727,-297.23686,0.00013877,2]
[332189046,1721020240736,-483.16409688,0.00013884,2]
[332189047,1721020240745,-500.0,0.00013888,2]
[332189048,1721020240754,-200.0,0.00013888,2]
[332189049,1721020240764,-3739.7418,0.0001389,2]
[332189050,1721020240773,-912.2249,0.0001389,2]
[332189051,1721020240782,-326.21886683,0.00013897,2]
[332189052,1721020240791,-621.470428,0.00013898,2]
[332189053,1721020240801,-207.15681,0.00013898,2]
[332189054,1721020240810,-559.18,0.00013899,2]
[332189055,1721020240819,-500.0,0.00013899,2]
[332189056,1721020240828,-600.15,0.00013899,2]
[332189057,1721020240837,-500.0,0.00013899,2]
[332189058,1721020240846,-500.0,0.00013899,2]
[332189059,1721020240855,-500.0,0.00013899,2]
[332189060,1721020240865,-1544.33,0.00013899,2]
[332189061,1721020240874,-2208.46,0.00013899,2]
[332189062,1721020240883,-500.0,0.00013899,2]
[332189063,1721020240893,-500.0,0.00013899,2]
[332189064,1721020240902,-500.0,0.00013899,2]
[332189065,1721020240912,-1575.67,0.00013899,2]
[332189066,1721020240921,-1341.46,0.00013899,2]
[332189067,1721020240930,-511.45788432,0.00013899,2]
[332189068,1721020240940,-500.0,0.00013899,2]
[332189069,1721020240949,-535.3291188,0.00013899,2]
[332189070,1721020240959,-674.04080023,0.000139,2]
[332189071,1721020240968,-1000.0,0.000139,2]
[332189072,1721020240978,-2508.7196,0.000139,2]
[332189073,1721020240987,-745.0577,0.000139,2]
[332189074,1721020240996,-13542.8027,0.000139,2]
[332189075,1721020241005,-909.7757,0.000139,2]
[332189076,1721020241015,-501.1919,0.000139,2]
[332189077,1721020241025,-1024.0,0.000139,2]
[332189078,1721020241034,-40000.0,0.000139,2]
[332189079,1721020241043,-157.44470744,0.000139,2]
[332189080,1721020241052,-486.20924216,0.000139,2]
[332189081,1721020241062,-418.51126409,0.000139,2]
[332189082,1721020241071,-483.16409688,0.000139,2]
[332189083,1721020241080,-476.06870409,0.000139,2]
[332189084,1721020241089,-451.91220406,0.000139,2]
[332189085,1721020241099,-419.68007271,0.000139,2]
[332189086,1721020241108,-340.56950107,0.000139,2]
[332189087,1721020241117,-326.21886683,0.000139,2]
[332189088,1721020241127,-409.23229485,0.00013934,2]
[332189089,1721020241136,-173.49,0.00013944,2]
[332189090,1721020241145,-500.0,0.00013954,2]
[332189091,1721020241160,-500.0,0.00013954,2]
[332189092,1721020241170,-500.0,0.00013954,2]
[332189093,1721020241179,-1544.33,0.00013954,2]
[332189094,1721020241188,-2208.46,0.00013954,2]
[332189095,1721020241197,-500.0,0.00013954,2]
[332189096,1721020241206,-500.0,0.00013954,2]
[332189097,1721020241214,-500.0,0.00013954,2]
[332189098,1721020241223,-1575.67,0.00013954,2]
[332189099,1721020241232,-1341.46,0.00013954,2]
[332189100,1721020241241,-1354.634764,0.00013973,2]
[332189101,1721020241250,-504.77950962,0.00013989,2]
[332189102,1721020241259,-500.0,0.00013989,2]
[332189103,1721020241268,-500.0,0.00013989,2]
[332189104,1721020241277,-493.10705705,0.00013989,2]
[332189105,1721020241286,-235.63320259,0.00013989,2]
[332189106,1721020241295,-170.22220395,0.00013989,2]
[332189107,1721020241304,-247.80264439,0.00013989,2]
[332189108,1721020241313,-969.14,0.00013989,2]
[332189109,1721020241322,-542.85,0.00013989,2]
[332189110,1721020241331,-445.70975391,0.00013989,2]
[332189111,1721020241340,-519.68479786,0.00013989,2]
[332189112,1721020241350,-500.0,0.00013989,2]
[332189113,1721020241359,-513.99975735,0.00013989,2]
[332189114,1721020241368,-500.0,0.00013989,2]
[332189115,1721020241377,-527.92715357,0.00013989,2]
[332189116,1721020241386,-511.53637075,0.00013989,2]
[332189117,1721020241395,-500.0,0.00013989,2]
[332189118,1721020241407,-500.0,0.00013989,2]
[332189119,1721020241415,-659.99,0.00013989,2]
[332189120,1721020241425,-204.20108655,0.00013989,2]
[332189121,1721020241434,-500.0,0.00013989,2]
[332189122,1721020241443,-500.0,0.00013989,2]
[332189123,1721020241452,-203.99599452,0.00013989,2]
[332189124,1721020241461,-502.93835726,0.00013989,2]
[332189125,1721020241470,-158.57869574,0.00013989,2]
[332189126,1721020241480,-456.1259615,0.00013989,2]
[332189127,1721020241489,-35356.7568964,0.0001399,3]
[332189128,1721020241499,-188.23245816,0.0001399,2]
[332189129,1721020241511,-134355.676206,0.0001399,3]
[332189130,1721020241520,-206.54664851,0.00013997,2]
[332189131,1721020241530,-1652.37318808,0.00013997,2]
[332189132,1721020241539,-5321.7484594,0.00013998,2]
[332189133,1721020241550,-2735.552684,0.00013998,2]
[332189134,1721020241559,-714.6147703,0.00013998,2]
[332189135,1721020241568,-13049.1770072,0.00013998,2]
[332189136,1721020241578,-9166.4915932,0.00013998,2]
[332189137,1721020241589,-500.0,0.00013999,2]
[332189138,1721020241599,-346.6238113,0.00013999,2]
[332189139,1721020241609,-500.0,0.00013999,2]
[332189140,1721020241618,-368.83185483,0.00013999,2]
[332189141,1721020241627,-500.0,0.00013999,2]
[332189142,1721020241636,-500.0,0.00013999,2]
[332189143,1721020241645,-500.0,0.00013999,2]
[332189144,1721020241656,-500.0,0.00013999,2]
[332189145,1721020241665,-500.0,0.00013999,2]
[332189146,1721020241674,-767.7,0.00013999,2]
[332189147,1721020241684,-500.0,0.00013999,2]
[332189148,1721020241693,-155.54092447,0.00013999,2]
[332189149,1721020241702,-400.0,0.00013999,2]
[332189150,1721020241711,-296259.49017883,0.00014,2]
[332189151,1721020241720,-1142955.41420826,0.00014,2]
[332189152,1721020241730,-2000.0,0.00014,2]
[332189153,1721020241739,-937161.62259691,0.00014,2]
[332189154,1721020241748,-5145794.93069193,0.00014,2]
[332189155,1721020241760,-72588.39459769,0.00014,2]
[332189156,1721020241771,-21513.17267246,0.00014,2]
[332189160,1721020243211,-358.503461,0.00013021,2]
[332189161,1721020243220,-484.23976416,0.00014,2]
[332189162,1721020243537,-338.12574811,0.00014,2]
[332189163,1721020243549,-1220.0,0.00014,2]
[332189164,1721020243560,-1064.00008,0.00014,2]
[332189165,1721020243577,-1881.76573124,0.00014,2]
[332189166,1721020243589,-3345.55,0.00014,2]
[332189168,1721020243609,-348.6911356,0.00014,2]
[332189169,1721020243620,-1605.35180376,0.00014,2]
[332189170,1721020243631,-1165.39763693,0.00014,2]
[332189180,1721020246156,-1349.08580306,0.00014,2]
[332189181,1721020246212,-584.82021014,0.00014,2]
[332189182,1721020246434,-3823.05,0.00014,2]
[332189184,1721020687088,-242.95,0.00010959,2]
[332189185,1721020687110,-242.95,0.00010959,2]
[332189186,1721020687131,-161.97,0.00010959,2]
[332189187,1721020687152,-809.87,0.00010959,2]
[332189188,1721020687174,-632.15,0.00011078,2]
[332189189,1721020687197,-300.0,0.00011097,2]
[332189190,1721020687219,-150.0,0.00011097,2]
[332189191,1721020687239,-2455.93042428,0.00011098,2]
[332189192,1721020687262,-1302.86269743,0.00011098,2]
[332189193,1721020687288,-731.63276311,0.00011098,2]
[332189194,1721020687310,-1580.09220265,0.00011098,2]
[332189195,1721020687331,-155.57739882,0.00011098,2]
[332189196,1721020687352,-528.89993841,0.00011098,2]
[332189197,1721020687374,-243.74818392,0.00011098,2]
[332189198,1721020687395,-370.00600628,0.00011098,2]
[332189199,1721020687417,-91.3603851,0.00011098,2]
[332189200,1721020688340,-63.6396149,0.00011098,2]
[332189201,1721020688362,-308.74270551,0.00011098,2]
[332189202,1721020688384,-347.22587627,0.00011098,2]
[332189203,1721020688406,-322.53490955,0.00011098,2]
[332189204,1721020688428,-156.0,0.00011098,2]
[332189205,1721020688449,-155.0,0.00011098,2]
[332189206,1721020688470,-245.31776,0.00011098,2]
[332189207,1721020688491,-322.3178481,0.00011098,2]
[332189208,1721020688512,-155.30311994,0.00011098,2]
[332189209,1721020688536,-155.74920634,0.00011098,2]
[332189210,1721020688557,-372.74863242,0.00011098,2]
[332189211,1721020688579,-266.62300381,0.00011098,2]
[332189212,1721020688599,-425.31225462,0.00011098,2]
[332189213,1721020688621,-1292.0088,0.00011099,2]
[332189214,1721020688643,-5411.47626854,0.00011199,2]
[332189215,1721020688891,-10000.0,0.00011199,2]
[332189216,1721020689387,-7476.26886811,0.00011199,2]
[332189218,1721020763618,1000.0,0.00027,120]
[332189219,1721020789405,809.23,0.00010959,2]
[332189220,1721020792359,1714.50113189,0.00011199,2]
[332189221,1721020792381,7576.27399296,0.00011199,2]
[332189222,1721020824186,1406.27066977,0.00011199,2]
[332189224,1721020851649,412.7481654,0.00011199,2]
[332189225,1721020865014,604.70717187,0.00011199,2]
[332189226,1721020865036,10000.0,0.00011199,2]
[332189227,1721020865058,10000.0,0.00011199,2]
[332189228,1721020865080,10000.0,0.00011199,2]
[332189229,1721020865102,1615.5040398,0.00011199,2]
[332189230,1721020865534,306.72327113,0.00011199,2]
[332189231,1721020865642,4000.0,0.00027,120]
[332189233,1721020905051,622.21,0.00010865,2]
[332189234,1721020938952,533.90157478,0.00011199,2]
[332189235,1721020950553,700.0,0.00011,2]
[332189236,1721020959846,161.071514,0.00025,60]
[332189238,1721020965275,161.071514,0.00025,61]
[332189239,1721020968180,2615.81833308,0.00011199,2]
[332189240,1721020977548,172.071514,0.00025,62]
[332189241,1721020993930,1271.86854711,0.00011199,2]
[332189242,1721020999793,1266.3458359,0.00011199,2]
[332189244,1721021024015,958.16486127,0.00011199,2]
[332189246,1721021031958,109.46353693,0.00011199,2]
[332189247,1721021031980,882.04816307,0.00011199,2]
[332189249,1721021058846,3628.03475845,0.00011199,2]
[332189252,1721021131068,521.34144675,0.00011199,2]
[332189253,1721021161591,280.69574901,0.00011199,2]
[332189254,1721021171792,205.69491159,0.00011199,2]
[332189258,1721021249356,159.04680905,0.00011199,2]
[332189259,1721021268013,1072.38944442,0.00011199,2]
[332189260,1721021274986,174.2851925,0.00011143,2]
[332189262,1721021301126,2983.70689604,0.00011199,2]
[332189268,1721021329175,92.75662912,0.00011199,2]
[332189289,1721021432255,-382.31751455,0.00011098,2]
[332189290,1721021432317,-2347.83063545,0.00011098,2]
[332189291,1721021432328,-1334.90618443,0.00011098,2]
[332189292,1721021432338,-414.540049,0.00011098,2]
[332189293,1721021432347,-484.13297627,0.00011197,2]
[332189294,1721021432356,-677.39590839,0.00011199,2]
[332189295,1721021432368,-734.85127068,0.00011199,2]
[332189296,1721021432377,-2983.9795,0.000117,2]
[332189297,1721021432387,-4545.15253759,0.000118,2]
[332189298,1721021432396,-601.28799692,0.00012302,2]
[332189299,1721021432406,-1570.7288877,0.00012302,2]
[332189300,1721021432416,-569.18650987,0.00012314,2]
[332189301,1721021432426,-250.0,0.00012568,2]
[332189302,1721021432436,-5545.94035955,0.0001259,2]
[332189303,1721021432445,-150.0,0.000126,2]
[332189304,1721021432455,-181.77,0.00012602,2]
[332189305,1721021432464,-182.03,0.00012794,2]
[332189306,1721021432474,-512.0,0.0001283,2]
[332189307,1721021432484,-300.0,0.00013128,2]
[332189308,1721021432493,-1083.94574338,0.00013128,2]
[332189309,1721021432502,-622.21,0.00013129,2]
[332189310,1721021432512,-488.0,0.00013154,2]
[332189311,1721021432522,-150.99,0.00013154,2]
[332189312,1721021432531,-178.44,0.00013265,2]
[332189313,1721021432541,-499.99,0.00013314,2]
[332189314,1721021432551,-181.046079,0.00013396,2]
[332189315,1721021432560,-180.403032,0.00013396,2]
[332189316,1721021432570,-300.81,0.000134,2]
[332189317,1721021432580,-889.01,0.000134,2]
[332189318,1721021432590,-150.0,0.00013452,2]
[332189319,1721021432599,-150.0,0.00013452,2]
[332189320,1721021432608,-150.0,0.00013452,2]
[332189321,1721021432619,-150.0,0.00013452,2]
[332189322,1721021432628,-150.0,0.00013452,2]
[332189323,1721021432637,-891.5258106,0.00013472,2]
[332189324,1721021432647,-521.34144675,0.00013472,2]
[332189325,1721021432656,-184.90396962,0.00013472,2]
[332189326,1721021432667,-2204.10519174,0.00013516,2]
[332189327,1721021432676,-722.84871215,0.00013516,2]
[332189328,1721021432687,-212.89402293,0.00013543,2]
[332189329,1721021432697,-270.3176987,0.00013543,2]
[332189330,1721021432706,-279.57997616,0.0001369,2]
[332189331,1721021432716,-541.92,0.00013699,2]
[332189332,1721021432726,-250.0,0.00013699,2]
[332189333,1721021432736,-1000.0,0.00013699,2]
[332189334,1721021432746,-181.9033277,0.00013699,2]
[332189335,1721021432756,-3348.63164333,0.000137,2]
[332189336,1721021432768,-86871.95475726,0.000137,2]
[332189337,1721021432779,-664.57727663,0.000137,2]
[332189338,1721021432790,-806.77598637,0.000137,2]
[332189339,1721021432802,-5762.62164953,0.000137,2]
[332189340,1721021432813,-2114.71810621,0.000137,2]
[332189341,1721021432825,-465.6817195,0.000137,2]
[332189342,1721021432837,-4051.00227482,0.000137,2]
[332189343,1721021432907,-546.53616094,0.000137,2]
[332189344,1721021432918,-938.07349676,0.000137,2]
[332189345,1721021432931,-562.4996314,0.000137,2]
[332189352,1721021433266,-2000.0,0.000137,2]
[332189361,1721021438300,-413.67982935,0.00011199,2]
[332189363,1721021438310,-685.81454762,0.00013472,2]
[332189365,1721021438319,-400.44480684,0.00013574,2]
[332189367,1721021438328,-500.89855148,0.000137,2]
[332189370,1721021438414,-712.24035346,0.000137,2]
[332189371,1721021438425,-374.94082365,0.000137,2]
[332189372,1721021438479,-785.92464769,0.000137,2]
[332189373,1721021438491,-782.62207443,0.000137,2]
[332189374,1721021438504,-3034.4801625,0.000137,2]
[332189375,1721021438515,-609.10961846,0.000137,2]
[332189376,1721021438525,-5808.32989986,0.000137,2]
[332189377,1721021438536,-1390.37596572,0.000137,2]
[332189378,1721021438546,-500.0,0.000137,7]
[332189379,1721021438555,-180.403032,0.00013731,2]
[332189380,1721021438564,-762.97634765,0.00013736,2]
[332189480,1721021440275,-1751.0,0.00013736,2]
[332189481,1721021440334,-583.2607277,0.00013736,2]
[332189482,1721021440581,-1312.16685292,0.00013736,2]
[332189483,1721021440593,-801.13303453,0.00013736,2]
[332189484,1721021440605,-7576.81895241,0.00013736,2]
[332189485,1721021440614,-3030.02587802,0.00013736,2]
[332189486,1721021440626,-527.80162773,0.00013736,2]
[332189487,1721021440636,-2500.0,0.00013752,2]
[332189488,1721021440646,-213.25534,0.00013759,2]
[332189489,1721021440655,-283.28302667,0.00013849,2]
[332189490,1721021440664,-599.39491772,0.00013849,2]
[332189491,1721021440677,-505.23344469,0.00013859,2]
[332189492,1721021440686,-520.23,0.00013859,2]
[332189493,1721021440696,-506.34237097,0.00013859,2]
[332189494,1721021440706,-500.0,0.00013859,2]
[332189495,1721021440715,-500.0,0.00013859,2]
[332189496,1721021440725,-500.0,0.00013859,2]
[332189497,1721021440735,-500.0,0.00013859,2]
[332189498,1721021440744,-188.74688444,0.00013859,2]
[332189499,1721021440754,-500.0,0.00013859,2]
[332189501,1721021440763,-500.0,0.00013859,2]
[332189503,1721021440772,-500.0,0.00013888,2]
[332189505,1721021440783,-200.0,0.00013888,2]
[332189507,1721021440792,-242.84667141,0.00013889,2]
[332189509,1721021440802,-371.1851228,0.00013889,2]
[332189511,1721021440812,-218.774938,0.00013889,2]
[332189513,1721021440821,-155.90194967,0.00013889,2]
[332189515,1721021440832,-508.98891061,0.00013899,2]
[332189517,1721021440841,-500.0,0.00013899,2]
[332189519,1721021440851,-786.52,0.00013899,2]
[332189521,1721021440861,-546.12719248,0.000139,2]
[332189523,1721021440870,-7500.0,0.000139,2]
[332189525,1721021440882,-1000.0,0.000139,2]
[332189527,1721021440894,-499.0,0.000139,2]
[332189528,1721021440903,-1610.63649224,0.000139,2]
[332189530,1721021440913,-326.21886683,0.000139,2]
[332189532,1721021440922,-520.23,0.00013914,2]
[332189534,1721021440932,-500.0,0.00013914,2]
[332189536,1721021440942,-500.0,0.00013914,2]
[332189538,1721021440952,-174.49922633,0.00013914,2]
[332189540,1721021440961,-500.0,0.00013914,2]
[332189542,1721021440973,-500.0,0.00013954,2]
[332189544,1721021440984,-786.52,0.00013954,2]
[332189546,1721021440993,-520.23,0.00013969,2]
[332189548,1721021441003,-307.24013297,0.00013969,2]
[332189550,1721021441013,-500.0,0.00013969,2]
[332189552,1721021441022,-500.0,0.00013989,2]
[332189554,1721021441032,-506.68746031,0.00013989,2]
[332189556,1721021441041,-387.14151785,0.00013989,2]
[332189558,1721021441051,-228.09249814,0.00013989,2]
[332189560,1721021441061,-297.23686,0.00013989,2]
[332189562,1721021441071,-175.03261142,0.00013989,2]
[332189564,1721021441080,-155.0,0.00013989,2]
[332189566,1721021441090,-263.3923088,0.00013989,2]
[332189568,1721021441099,-594.65034229,0.00013997,2]
[332189570,1721021441109,-500.0,0.00013997,2]
[332189572,1721021441118,-500.0,0.00013997,2]
[332189574,1721021441129,-500.0,0.00013997,2]
[332189576,1721021441138,-1003.69,0.00013997,2]
[332189578,1721021441148,-500.0,0.00013997,2]
[332189580,1721021441157,-500.0,0.00013997,2]
[332189582,1721021441167,-500.0,0.00013997,2]
[332189584,1721021441176,-632.49,0.00013997,2]
[332189586,1721021441186,-500.0,0.00013997,2]
[332189588,1721021441196,-500.0,0.00013997,2]
[332189590,1721021441205,-248.0574379,0.00013997,2]
[332189591,1721021441214,-500.0,0.00013997,2]
[332189592,1721021441224,-1415.64,0.00013997,2]
[332189593,1721021441233,-500.0,0.00013997,2]
[332189594,1721021441242,-2108.07,0.00013997,2]
[332189595,1721021441252,-500.0,0.00013997,2]
[332189596,1721021441261,-519.36,0.00013997,2]
[332189597,1721021441270,-500.0,0.00013997,2]
[332189598,1721021441280,-1499.8,0.00013997,2]
[332189599,1721021441289,-414.3864109,0.00013999,2]
[332189600,1721021441299,-5242.1946956,0.00013999,2]
[332189601,1721021441308,-1016.79379245,0.00013999,2]
[332189602,1721021441321,-105.66290025,0.00013999,2]
[332189603,1721021441329,-1151.45709975,0.00013999,2]
[332189605,1721021441375,-1226.66149548,0.00013999,2]
[332189607,1721021441386,-495.55389865,0.00013999,2]
[332189609,1721021441397,-519.73379976,0.00013999,2]
[332189611,1721021441408,-1197.8095201,0.00013999,2]
[332189614,1721021441419,-304.2,0.00013999,2]
[332189616,1721021441431,-294.675,0.00013999,2]
[332189618,1721021441442,-4547.08758781,0.00013999,2]
[332189620,1721021441453,-3604.54927796,0.00013999,2]
[332189622,1721021441464,-7543.60144889,0.00013999,2]
[332189624,1721021441473,-156.3694201,0.00013999,2]
[332189626,1721021441482,-47845.02913105,0.00014,2]
[332189628,1721021441493,-6584.77830081,0.00014,2]
[332189838,1721021443428,-902.31682698,0.00014,2]
[332189850,1721021443544,-489.98199999,0.00014,2]
[332189863,1721021443660,-20000.39273203,0.00014,2]
[332189865,1721021443671,-2415.26216506,0.00014,2]
[332189867,1721021443683,-513.18500005,0.00014,2]
[332189878,1721021443784,-204127.14217533,0.00014,2]
[332189880,1721021443794,-730738.63064515,0.00014,2]
[332189882,1721021443807,-821.59862233,0.00014,2]
[332189887,1721021443844,-1063.2,0.00014,2]
[332190280,1721021457740,758.6748495,0.00027,120]
[332190281,1721021555613,157.993387,0.00027,120]
[332190289,1721022632683,-432.000004,0.00010443,2]
[332190290,1721022632695,-210.759996,0.00010443,2]
[332190291,1721022632704,-245.094444,0.00010642,2]
[332190292,1721022632716,-335.08950845,0.00010642,2]
[332190293,1721022632727,-276.52,0.00010642,2]
[332190294,1721022632739,-2134.87804675,0.00010642,2]
[332190295,1721022632748,-201.7130477,0.00010742,2]
[332190296,1721022632758,-360.4660218,0.00010842,2]
[332190297,1721022632769,-389.84087267,0.00010842,2]
[332190298,1721022632780,-147.76843553,0.00010842,2]
[332190299,1721022632789,-150.0,0.00011068,2]
[332190300,1721022632991,-413.96038581,0.00011096,2]
[332190301,1721022633003,-10837.72009472,0.00011096,2]
[332190302,1721022633013,-3667.48015784,0.00011097,2]
[332190303,1721022633025,-4024.24960096,0.00011097,2]
[332190304,1721022633035,-532.22285658,0.00011098,2]
[332190306,1721022633045,-227.37751483,0.00011098,2]
[332190308,1721022633055,-1136.70475368,0.00011098,2]
[332190309,1721022633065,-209.03744674,0.00011098,2]
[332190311,1721022633074,-155.0,0.00011098,2]
[332190313,1721022633084,-158.78655632,0.00011098,2]
[332190314,1721022633094,-196.61750891,0.00011197,2]
[332190316,1721022633104,-155.0,0.00011199,2]
[332190318,1721022633114,-2050.80386112,0.00011199,2]
[332190320,1721022633124,-1666.5,0.0001215,2]
[332190322,1721022633135,-250.0,0.00012205,2]
[332190324,1721022633144,-181.77,0.00012205,2]
[332190325,1721022633154,-641.41,0.00012257,2]
[332190326,1721022633166,-155.0,0.00012302,2]
[332190327,1721022633176,-150.99,0.00012314,2]
[332190329,1721022633186,-250.0,0.00012371,2]
[332190331,1721022633199,-2059.93,0.00012401,2]
[332190333,1721022633209,-1000.0,0.00012496,2]
[332190335,1721022633218,-154.16610012,0.000126,2]
[332190337,1721022633228,-150.0,0.00012678,2]
[332190339,1721022633238,-15947.53380074,0.00012679,2]
[332190342,1721022633255,-3400.28848668,0.00012679,2]
[332190343,1721022633267,-299.6900001,0.00012679,2]
[332190344,1721022633279,-780.09502518,0.00012679,2]
[332190345,1721022633292,-3462.3926873,0.00012679,2]
[332190346,1721022633301,-179.99,0.00012679,2]
[332190347,1721022633309,-181.72,0.00012683,2]
[332190348,1721022633318,-642.76,0.00012707,2]
[332190349,1721022633328,-8.65760119,0.00013,2]
[332190350,1721022633340,-748.65194149,0.00013,2]
[332190351,1721022633351,-492.69045732,0.00013,2]
[332190352,1721022633360,-200.0,0.000131,4]
[332190353,1721022633369,-155.0,0.00013128,2]
[332190354,1721022633379,-500.0,0.000132,4]
[332190355,1721022633388,-800.0,0.000133,4]
[332190356,1721022633397,-1100.0,0.000134,4]
[332190357,1721022633406,-2258.93508963,0.00013448,2]
[332190358,1721022633422,-6401.06491037,0.00013448,2]
[332190359,1721022633431,-150.0,0.00013452,2]
[332190360,1721022633440,-150.0,0.00013452,2]
[332190361,1721022633449,-150.0,0.00013452,2]
[332190362,1721022633459,-150.0,0.00013452,2]
[332190363,1721022633468,-156.0,0.00013472,2]
[332190364,1721022633478,-1369.7334202,0.00013472,2]
[332190365,1721022633487,-163.00878063,0.00013472,2]
[332190366,1721022633496,-189.97295242,0.00013472,2]
[332190367,1721022633506,-264.29788732,0.000135,4]
[332190368,1721022633518,-1135.70211268,0.000135,4]
[332190369,1721022633527,-1160.19444095,0.00013516,2]
[332190370,1721022633536,-654.37201286,0.00013543,2]
[332190371,1721022633545,-1209.8098,0.000136,2]
[332190372,1721022633555,-2244.1196,0.000136,2]
[332190373,1721022633564,-200.0,0.000136,4]
[332190374,1721022633573,-250.0,0.00013699,2]
[332190375,1721022633582,-1500.0,0.00013699,5]
[332190376,1721022633591,-385.17,0.00013699,2]
[332190377,1721022633600,-200.0,0.000137,5]
[332190378,1721022633609,-3394.63870149,0.00013736,2]
[332190379,1721022633618,-779.7810233,0.00013736,2]
[332190380,1721022633628,-649.33683349,0.00013759,2]
[332190381,1721022633637,-255.0,0.00013781,2]
[332190382,1721022633647,-1125.66949028,0.00013797,2]
[332190383,1721022633656,-184.0405,0.00013798,2]
[332190384,1721022633668,-1218.38455524,0.00013798,2]
[332190385,1721022633679,-38275.90174476,0.00013798,2]
[332190386,1721022633688,-74357.6577,0.000138,2]
[332190387,1721022633698,-7500.0,0.000138,2]
[332190388,1721022633707,-200.0,0.000138,5]
[332190389,1721022633716,-173.67,0.00013811,2]
[332190390,1721022633725,-500.0,0.00013888,2]
[332190391,1721022633734,-200.0,0.00013888,2]
[332190392,1721022633743,-532.71874759,0.00013889,2]